bitfinex/quotes_SOLUSD_20241029
["timestamp","ask_amount","ask_price","bid_price","bid_amount"]
[1730239525479,11.40851236,178.92,178.85,10.81734591]
[1730239526481,11.40851236,178.92,178.86,19.5683]
[1730239527063,23.776884,178.91,178.82,41.941]
[1730239527259,40.153384,178.91,178.83,30.38894591]
[1730239527669,5.83401396,178.9,178.83,30.38894591]
[1730239528566,5.59,178.89,178.83,30.38894591]
[1730239529482,5.59,178.89,178.8,19.5749]
[1730239529659,23.776884,178.88,178.81,10.81734591]
[1730239533188,5.5903,178.89,178.84,10.81734591]
[1730239533562,5.5903,178.89,178.84,16.40884591]
[1730239533773,22.19860215,178.91,178.84,16.40884591]
[1730239534088,5.5897,178.9,178.84,19.5704]
[1730239534285,5.5897,178.9,178.84,13.9789]
[1730239543803,5.5897,178.9,178.83,10.81734591]
[1730239544096,11.41150215,178.91,178.85,10.81734591]
[1730239544472,5.5894,178.91,178.85,10.81734591]
[1730239545101,23.776884,178.92,178.85,10.81734591]
[1730239545281,29.365884,178.92,178.86,5.5909]
[1730239546505,29.365884,178.92,178.85,13.9779]
[1730239549607,38.875284,178.9,178.83,10.81734591]
[1730239550690,5.59,178.89,178.83,16.40904591]
[1730239552903,5.59,178.89,178.82,24.79744591]
[1730239554108,5.59,178.89,178.82,30.38964591]
[1730239556109,5.59,178.89,178.82,13.9801]
[1730239556813,23.776884,178.88,178.79,19.5756]
[1730239557183,23.776884,178.88,178.8,10.81734591]
[1730239557385,23.776884,178.88,178.79,30.39294591]
[1730239557802,5.5906,178.87,178.79,30.39294591]
[1730239558010,23.776884,178.86,178.79,30.39294591]
[1730239559101,5.5912,178.85,178.79,30.39294591]
[1730239560387,5.5912,178.85,178.78,10.81734591]
[1730239561522,5.5912,178.85,178.75,19.5804]
[1730239561523,5.5912,178.85,178.79,16.41044591]
[1730239562393,5.5912,178.85,178.79,30.39324591]
[1730239563024,43.776884,178.89,178.81,10.81734591]
[1730239563192,43.776884,178.89,178.79,19.5759]
[1730239564418,49.366884,178.89,178.79,19.5759]
[1730239564591,49.366884,178.89,178.79,13.9828]
[1730239564786,63.341884,178.89,178.76,13.985]
[1730239565022,63.441884,178.89,178.76,13.985]
[1730239565204,43.776884,178.87,178.76,13.985]
[1730239565414,43.776884,178.87,178.77,10.81734591]
[1730239566818,43.776884,178.85,178.77,16.41094591]
[1730239567987,5.5915,178.84,178.77,5.5936]
[1730239568189,23.776884,178.83,178.77,5.5936]
[1730239568992,23.776884,178.84,178.77,5.5936]
[1730239569302,29.368384,178.84,178.77,5.5936]
[1730239573727,29.368384,178.84,178.76,13.985]
[1730239574023,29.368384,178.84,178.76,24.80234591]
[1730239574816,29.368384,178.84,178.78,5.5934]
[1730239575326,29.368384,178.84,178.76,13.985]
[1730239575327,29.368384,178.84,178.76,24.80234591]
[1730239575509,29.368384,178.84,178.77,5.5937]
[1730239575716,35.19808887,178.84,178.77,5.5937]
[1730239576621,35.19808887,178.84,178.77,19.5781]
[1730239576805,35.19808887,178.84,178.78,10.81734591]
[1730239577005,29.368384,178.84,178.77,24.80174591]
[1730239577209,29.368384,178.84,178.77,13.9844]
[1730239578927,29.368384,178.84,178.77,19.5781]
[1730239580035,29.368384,178.84,178.77,24.80174591]
[1730239581626,29.368384,178.84,178.77,30.39544591]
[1730239584031,29.368384,178.84,178.77,13.9844]
[1730239584438,29.368384,178.84,178.74,16.1591]
[1730239584439,23.776884,178.82,178.74,5.5946]
[1730239585543,23.776884,178.82,178.74,19.5813]
[1730239585737,5.5925,178.81,178.74,19.5813]
[1730239585938,5.5925,178.81,178.74,30.39864591]
[1730239586132,5.5925,178.81,178.74,19.5813]
[1730239586544,5.5925,178.81,178.74,30.39864591]
[1730239588053,5.5925,178.81,178.75,10.81734591]
[1730239589333,43.776884,178.8,178.7,22.7142]
[1730239589534,43.776884,178.8,178.71,5.5956]
[1730239590558,20.0,178.78,178.7,13.9891]
[1730239591730,23.776884,178.78,178.7,13.9891]
[1730239593657,5.5937,178.77,178.7,13.9891]
[1730239594547,5.5937,178.77,178.7,19.585]
[1730239595655,5.5935,178.78,178.73,10.81734591]
[1730239595852,5.83325755,178.82,178.76,10.81734591]
[1730239596074,5.83325755,178.82,178.78,10.81734591]
[1730239596236,5.5909,178.86,178.77,10.81734591]
[1730239596430,11.42906424,178.86,178.76,10.81734591]
[1730239596963,11.42906424,178.86,178.75,25.83474591]
[1730239597160,11.42906424,178.86,178.76,10.81734591]
[1730239597662,23.776884,178.84,178.76,16.41114591]
[1730239598045,23.776884,178.84,178.77,10.81734591]
[1730239599964,5.5919,178.83,178.78,10.81734591]
[1730239600271,20.0,178.85,178.78,10.81734591]
[1730239600472,5.5913,178.85,178.79,10.81734591]
[1730239600648,5.5913,178.85,178.8,10.81734591]
[1730239601544,5.5913,178.85,178.8,16.41014591]
[1730239604070,5.5909,178.86,178.8,16.41014591]
[1730239604270,5.5909,178.86,178.81,10.81734591]
[1730239604766,5.5909,178.86,178.8,5.5928]
[1730239604767,5.83764982,178.87,178.85,10.81734591]
[1730239604950,5.5894,178.91,178.86,10.81734591]
[1730239605156,16.0518,178.92,178.89,10.81734591]
[1730239605339,6.42500203,178.93,178.83,43.26938364]
[1730239605340,12.01400203,178.93,178.9,10.81734591]
[1730239605544,12.01400203,178.93,178.89,10.81734591]
[1730239607764,12.01400203,178.93,178.88,10.81734591]
[1730239611653,6.1911181,178.93,178.88,10.81734591]
[1730239612544,6.1911181,178.93,178.86,13.977]
[1730239613355,6.1911181,178.93,178.86,19.5679]
[1730239613549,6.1911181,178.93,178.86,30.38524591]
[1730239613758,6.1911181,178.93,178.87,10.81734591]
[1730239616762,6.1911181,178.93,178.86,10.81734591]
[1730239617749,6.1911181,178.93,178.86,16.40814591]
[1730239620257,6.1911181,178.93,178.86,16.40824591]
[1730239622786,23.776884,178.92,178.84,5.5913]
[1730239622983,23.776884,178.92,178.85,10.81734591]
[1730239623366,23.776884,178.92,178.84,30.38754591]
[1730239623768,23.776884,178.92,178.85,10.81734591]
[1730239624785,23.776884,178.92,178.84,24.79624591]
[1730239625090,5.5894,178.91,178.84,24.79624591]
[1730239625961,5.5894,178.91,178.86,10.81734591]
[1730239626161,0.6021181,178.93,178.89,10.81734591]
[1730239626364,0.6021181,178.93,178.92,10.81734591]
[1730239627279,0.6021181,178.93,178.91,10.81734591]
[1730239627481,0.6021181,178.93,178.88,15.8993]
[1730239627685,0.6021181,178.93,178.89,10.81734591]
[1730239628598,0.6021181,178.93,178.89,16.40704591]
[1730239631400,0.6021181,178.93,178.92,10.81734591]
[1730239632680,0.6021181,178.93,178.91,10.81734591]
[1730239633888,0.6021181,178.93,178.91,16.40664591]
[1730239634509,0.6021181,178.93,178.92,10.81734591]
[1730239634807,0.6021181,178.93,178.92,54.08672955]
[1730239635794,0.6021181,178.93,178.92,59.67572955]
[1730239636001,5.8298652,179.06,178.95,6.2131]
[1730239636178,5.8298652,179.06,179.03,10.81734591]
[1730239636494,5.5834,179.1,179.03,10.81734591]
[1730239636698,11.4123403,179.1,179.04,10.81734591]
[1730239637077,11.4123403,179.1,179.04,16.40254591]
[1730239637275,5.5834,179.1,179.04,5.5852]
[1730239637584,22.3981181,179.11,179.05,10.81734591]
[1730239637794,22.3981181,179.11,179.04,30.36584591]
[1730239638009,22.3981181,179.11,179.05,10.81734591]
[1730239638304,21.8981181,179.11,179.05,10.81734591]
[1730239638598,0.1021181,179.11,179.06,10.81734591]
[1730239638797,0.1021181,179.11,179.08,10.81734591]
[1730239639187,0.1021181,179.11,179.1,10.81734591]
[1730239640705,0.1021181,179.11,179.1,16.40074591]
[1730239641382,0.1021181,179.11,179.1,5.5834]
[1730239641583,0.1,179.26,179.1,5.5834]
[1730239641584,5.5797,179.23,179.11,23.776884]
[1730239641788,5.5797,179.23,179.19,10.81734591]
[1730239642090,5.5797,179.23,179.18,10.81734591]
[1730239642282,5.5797,179.23,179.11,23.876884]
[1730239642478,5.5788,179.25,179.18,16.82091104]
[1730239643005,5.5788,179.25,179.17,22.40211104]
[1730239644092,5.5788,179.25,179.18,16.82091104]
[1730239644822,5.5788,179.25,179.17,16.82091104]
[1730239645311,43.776884,179.24,179.15,13.9543]
[1730239645812,43.776884,179.24,179.17,16.82091104]
[1730239646012,20.0,179.24,179.17,16.82091104]
[1730239646382,20.0,179.24,179.18,16.82091104]
[1730239646787,5.5788,179.25,179.19,16.82091104]
[1730239647397,5.5788,179.25,179.19,22.40151104]
[1730239648206,5.5788,179.25,179.19,16.82091104]
[1730239648512,5.5788,179.25,179.18,36.35391104]
[1730239648896,20.0,179.24,179.14,13.9548]
[1730239649099,20.0,179.24,179.18,16.82091104]
[1730239649400,20.0,179.24,179.14,19.537]
[1730239649401,20.0,179.24,179.17,16.82091104]
[1730239649595,25.5788,179.25,179.18,16.82091104]
[1730239649803,21.7915,179.26,179.2,16.82091104]
[1730239650484,5.5786,179.26,179.2,16.82091104]
[1730239651305,5.5781,179.27,179.19,22.40131104]
[1730239653606,5.5781,179.27,179.17,13.9532]
[1730239653607,20.0,179.26,179.17,30.77411104]
[1730239653793,20.0,179.26,179.19,16.82091104]
[1730239653989,19.5235,179.27,179.2,16.82091104]
[1730239653990,5.5781,179.27,179.2,16.82091104]
[1730239654214,5.5781,179.27,179.21,16.82091104]
[1730239654518,5.5781,179.27,179.18,16.82091104]
[1730239654905,5.5781,179.27,179.17,36.35531104]
[1730239655202,20.0,179.26,179.17,19.5344]
[1730239656193,25.5781,179.27,179.17,19.5344]
[1730239656939,39.5235,179.27,179.17,13.9532]
[1730239657498,20.0,179.25,179.14,13.9554]
[1730239658222,5.5791,179.24,179.14,19.5376]
[1730239658634,39.400084,179.22,179.12,15.3551]
[1730239658928,20.0,179.19,179.08,34.8991]
[1730239659104,23.776884,179.18,179.08,34.8991]
[1730239659922,5.5812,179.17,179.08,34.8991]
[1730239661448,5.5809,179.18,179.08,34.8991]
[1730239663667,20.0,179.17,179.08,19.544]
[1730239663857,23.776884,179.16,179.05,13.9624]
[1730239665069,5.5819,179.15,179.05,36.36831104]
[1730239665234,5.5819,179.15,179.07,16.82091104]
[1730239666458,5.5816,179.16,179.08,19.5442]
[1730239667558,5.5816,179.16,179.08,13.9602]
[1730239668954,5.5816,179.16,179.08,19.5442]
[1730239669159,5.5816,179.16,179.09,16.82091104]
[1730239669350,5.5816,179.16,179.08,36.36511104]
[1730239670157,5.5816,179.16,179.07,16.82091104]
[1730239671141,5.5816,179.16,179.08,5.584]
[1730239671338,5.5816,179.16,179.08,19.5442]
[1730239671541,5.5816,179.16,179.08,36.36511104]
[1730239672559,5.5816,179.16,179.08,10.77678795]
[1730239673748,5.5816,179.16,179.09,5.5837]
[1730239674964,5.5816,179.16,179.07,10.77678795]
[1730239676667,5.5816,179.16,179.06,10.77678795]
[1730239676859,5.5816,179.16,179.07,19.5454]
[1730239680974,5.5816,179.16,179.06,10.77678795]
[1730239681975,5.5816,179.16,179.07,10.77678795]
[1730239682175,5.5816,179.16,179.08,5.584]
[1730239682489,16.406,179.15,179.07,13.9604]
[1730239682855,23.776884,179.13,179.03,13.9636]
[1730239683080,20.0,179.12,179.03,13.9636]
[1730239684058,5.5831,179.11,179.03,13.9636]
[1730239684991,5.5831,179.11,179.01,10.77678795]
[1730239685371,5.5828,179.12,179.05,10.77678795]
[1730239685573,5.5828,179.12,179.04,10.77678795]
[1730239686390,25.5822,179.14,179.05,19.5475]
[1730239686692,25.5822,179.14,179.05,30.32428795]
[1730239687485,5.5822,179.14,179.05,30.32428795]
[1730239690301,5.5822,179.14,179.06,10.77678795]
[1730239690601,5.5822,179.14,179.05,10.77678795]
[1730239691081,5.5822,179.14,179.08,10.77678795]
[1730239692088,5.5822,179.14,179.09,5.5837]
[1730239692998,5.5822,179.14,179.05,13.9622]
[1730239693502,5.8281048,179.17,179.1,10.77678795]
[1730239693674,5.5806,179.19,179.11,10.77678795]
[1730239694073,5.5806,179.19,179.12,10.77678795]
[1730239695204,5.5806,179.19,179.12,30.31638795]
[1730239695502,5.5806,179.19,179.13,10.77678795]
[1730239695798,5.5806,179.19,179.14,10.77678795]
[1730239696101,5.5803,179.21,179.14,10.77678795]
[1730239696999,5.82603232,179.23,179.12,10.77678795]
[1730239697000,20.0,179.22,179.12,10.77678795]
[1730239697202,25.5797,179.22,179.12,10.77678795]
[1730239697784,25.5797,179.22,179.13,10.77678795]
[1730239698105,25.5797,179.22,179.15,5.5819]
[1730239698793,5.82603232,179.23,179.2,10.77678795]
[1730239698996,6.1800181,179.28,179.21,10.77678795]
[1730239699379,6.1800181,179.28,179.15,55.29531406]
[1730239699583,6.1800181,179.28,179.15,55.19531406]
[1730239699812,6.1800181,179.28,179.19,10.77678795]
[1730239699980,6.1800181,179.28,179.15,34.54258617]
[1730239700307,20.0,179.27,179.18,24.72898795]
[1730239701605,5.5784,179.26,179.16,5.5816]
[1730239702300,20.0,179.25,179.16,5.5816]
[1730239702679,5.5791,179.24,179.16,5.5816]
[1730239704785,5.5791,179.24,179.15,13.9546]
[1730239705980,5.5791,179.24,179.15,19.5365]
[1730239706596,5.5791,179.24,179.16,16.82524252]
[1730239706782,5.5781,179.27,179.18,16.82524252]
[1730239707186,5.5781,179.27,179.17,16.82524252]
[1730239707915,5.5781,179.27,179.16,16.82524252]
[1730239708210,5.5781,179.27,179.15,13.9546]
[1730239708400,5.5781,179.27,179.13,22.1627]
[1730239708401,20.0,179.26,179.13,22.1627]
[1730239708730,20.0,179.26,179.07,29.42731491]
[1730239708731,43.776884,179.22,179.11,5.5828]
[1730239709210,43.776884,179.22,179.09,38.70184252]
[1730239709211,43.776884,179.22,179.09,21.8766]
[1730239709508,43.776884,179.22,179.1,5.5833]
[1730239710104,43.776884,179.2,179.1,5.5833]
[1730239710805,43.776884,179.2,179.09,13.9588]
[1730239710999,43.776884,179.2,179.09,19.5425]
[1730239712007,20.0,179.18,179.09,19.5425]
[1730239712907,25.5806,179.19,179.09,19.5425]
[1730239713201,25.5806,179.19,179.09,36.36774252]
[1730239714702,25.5806,179.19,179.1,16.82524252]
[1730239714896,25.5806,179.19,179.11,16.82524252]
[1730239715219,25.5806,179.19,179.09,30.78404252]
[1730239715793,25.5806,179.19,179.09,36.36774252]
[1730239716021,25.5806,179.19,179.1,16.82524252]
[1730239716799,25.5806,179.19,179.11,19.541]
[1730239719599,25.5806,179.19,179.09,16.82524252]
[1730239720525,25.5806,179.19,179.08,40.72761652]
[1730239720730,25.5806,179.19,179.09,19.5431]
[1730239721644,15.6194,179.18,179.09,13.9594]
[1730239721852,6.0788,179.16,179.06,13.9617]
[1730239722153,20.0,179.15,179.06,19.5464]
[1730239722819,5.5822,179.14,179.06,30.78694252]
[1730239723155,5.5822,179.14,179.06,13.9617]
[1730239723440,5.5812,179.17,179.08,16.82524252]
[1730239723846,5.5812,179.17,179.07,16.82524252]
[1730239724039,5.5812,179.17,179.06,13.9617]
[1730239724521,5.5812,179.17,179.06,19.5464]
[1730239725242,5.5812,179.17,179.06,30.32631458]
[1730239725442,5.5812,179.17,179.06,13.9617]
[1730239725646,5.5812,179.17,179.06,24.74161458]
[1730239726640,5.5812,179.17,179.06,30.32631458]
[1730239727844,20.0,179.16,179.06,19.5464]
[1730239729142,5.5819,179.15,179.06,19.5464]
[1730239729329,5.5819,179.15,179.06,30.32631458]
[1730239729530,5.5819,179.15,179.07,10.77991458]
[1730239730131,20.0299,179.2,179.11,10.77991458]
[1730239730132,5.5809,179.19,179.11,10.77991458]
[1730239730325,17.48638353,179.2,179.11,10.77991458]
[1730239730538,5.5804,179.2,179.11,10.77991458]
[1730239730932,5.58,179.21,179.12,19.5399]
[1730239732037,5.58,179.21,179.12,13.9571]
[1730239735161,5.58,179.21,179.12,30.31981458]
[1730239736667,5.58,179.21,179.13,10.77991458]
[1730239736968,5.58,179.21,179.12,13.9571]
[1730239737262,5.58,179.21,179.12,24.73701458]
[1730239737972,5.58,179.21,179.12,30.31981458]
[1730239738776,5.58,179.21,179.13,10.77991458]
[1730239739441,5.58,179.21,179.13,16.36221458]
[1730239739641,5.58,179.21,179.13,5.5823]
[1730239740267,5.58,179.21,179.12,19.5399]
[1730239740669,20.0,179.2,179.1,19.542]
[1730239741169,20.0,179.2,179.1,30.32191458]
[1730239741748,20.0,179.18,179.1,30.32191458]
[1730239742172,5.5806,179.19,179.13,10.77991458]
[1730239743359,20.0,179.2,179.13,16.36211458]
[1730239744363,5.5806,179.19,179.13,16.36211458]
[1730239744557,5.5806,179.19,179.13,5.5822]
[1730239744757,25.5803,179.2,179.13,30.31841458]
[1730239746377,39.5311,179.2,179.1,19.5417]
[1730239746570,39.5311,179.2,179.1,30.32161458]
[1730239746883,39.5311,179.2,179.11,10.77991458]
[1730239747175,25.5803,179.2,179.14,10.77991458]
[1730239748255,25.5803,179.2,179.13,24.73581458]
[1730239749055,25.5803,179.2,179.12,10.77991458]
[1730239749775,25.5803,179.2,179.1,58.23921458]
[1730239749976,25.5803,179.2,179.11,10.77991458]
[1730239750780,25.5803,179.2,179.12,5.5828]
[1730239751576,25.5803,179.2,179.11,19.541]
[1730239752368,39.5311,179.2,179.11,19.541]
[1730239753375,39.5311,179.2,179.11,13.9579]
[1730239754284,39.5311,179.2,179.09,5.5837]
[1730239755170,39.5311,179.2,179.09,19.5431]
[1730239756985,39.5311,179.2,179.06,47.4701]
[1730239757175,39.5311,179.2,179.07,10.77991458]
[1730239757781,39.5311,179.2,179.08,10.77991458]
[1730239758265,39.5311,179.2,179.09,30.32301458]
[1730239758585,39.5311,179.2,179.12,10.77991458]
[1730239758882,39.5311,179.2,179.1,10.77991458]
[1730239759484,39.5311,179.2,179.11,5.5831]
[1730239760089,45.35830664,179.2,179.11,5.5831]
[1730239763785,45.35830664,179.2,179.11,10.77991458]
[1730239764168,45.35830664,179.2,179.12,10.77991458]
[1730239764369,11.40750664,179.2,179.12,10.77991458]
[1730239764575,5.5803,179.2,179.12,10.77991458]
[1730239764773,5.5803,179.2,179.11,10.77991458]
[1730239764972,5.5803,179.2,179.1,10.77991458]
[1730239765290,19.5311,179.2,179.1,10.77991458]
[1730239765677,20.0,179.19,179.1,10.77991458]
[1730239765895,20.0,179.19,179.11,5.5831]
[1730239766602,20.0,179.19,179.1,19.542]
[1730239767607,5.5809,179.18,179.1,19.542]
[1730239768702,5.5809,179.18,179.11,10.77991458]
[1730239769489,5.5809,179.18,179.13,10.77991458]
[1730239769798,5.5809,179.18,179.12,10.77991458]
[1730239770510,5.5809,179.18,179.13,5.5825]
[1730239771808,5.58,179.21,179.14,10.77991458]
[1730239771986,5.82674939,179.22,179.19,10.77991458]
[1730239772189,5.5791,179.24,179.18,10.77991458]
[1730239772502,5.5791,179.24,179.17,10.77991458]
[1730239773212,5.5788,179.25,179.18,5.5809]
[1730239773389,5.5788,179.25,179.17,13.953]
[1730239773707,20.0,179.24,179.17,13.953]
[1730239774387,20.0,179.24,179.17,19.5342]
[1730239775010,20.0,179.24,179.17,13.953]
[1730239775187,25.5788,179.25,179.17,13.953]
[1730239777293,25.5788,179.25,179.17,19.5342]
[1730239778802,25.5788,179.25,179.17,19.5342]
[1730239779609,25.5788,179.25,179.17,10.77991458]
[1730239780798,25.5788,179.25,179.17,16.36111458]
[1730239783022,25.5788,179.25,179.19,10.77991458]
[1730239783201,25.5788,179.25,179.18,10.77991458]
[1730239783802,25.5788,179.25,179.17,19.5344]
[1730239784302,25.5788,179.25,179.17,10.77991458]
[1730239784718,25.5788,179.25,179.18,10.77991458]
[1730239784907,25.5788,179.25,179.17,10.77991458]
[1730239785602,25.5788,179.25,179.15,10.77991458]
[1730239786111,25.5788,179.25,179.16,10.77991458]
[1730239787620,25.5788,179.25,179.17,5.5812]
[1730239791813,25.5788,179.25,179.17,10.77991458]
[1730239792015,25.5788,179.25,179.15,13.954]
[1730239792016,5.5788,179.25,179.18,10.77991458]
[1730239792415,5.5788,179.25,179.19,10.77991458]
[1730239792912,5.5788,179.25,179.2,5.5803]
[1730239794230,5.5788,179.25,179.17,5.5812]
[1730239795620,5.5788,179.25,179.17,30.31431458]
[1730239795829,5.5788,179.25,179.18,10.77991458]
[1730239797214,5.5788,179.25,179.19,5.5806]
[1730239798738,5.5788,179.25,179.17,10.77991458]
[1730239800334,5.5788,179.25,179.18,5.5809]
[1730239801229,5.5788,179.25,179.18,19.5333]
[1730239801742,20.0,179.24,179.15,13.9547]
[1730239801942,20.0,179.24,179.15,24.73461458]
[1730239802439,5.5794,179.23,179.15,30.31651458]
[1730239803130,5.5794,179.23,179.15,19.5366]
[1730239803331,5.5794,179.23,179.15,30.31651458]
[1730239806643,5.5794,179.23,179.09,5.5837]
[1730239806644,20.0,179.2,179.09,5.5837]
[1730239806821,20.0,179.2,179.09,16.36361458]
[1730239807728,5.5806,179.19,179.09,30.32301458]
[1730239808809,20.0,179.18,179.09,13.9594]
[1730239809037,20.0,179.18,179.09,19.5431]
[1730239809624,20.0,179.2,179.14,10.77991458]
[1730239809839,20.5835,179.21,179.15,19.5366]
[1730239810362,20.5835,179.21,179.15,13.9547]
[1730239812463,20.5835,179.21,179.15,13.9547]
[1730239813155,20.5835,179.21,179.14,10.77991458]
[1730239813651,5.5797,179.22,179.16,10.77991458]
[1730239813875,5.5797,179.22,179.17,10.77991458]
[1730239814865,5.5791,179.24,179.17,10.77991458]
[1730239815271,5.82631279,179.26,179.18,10.77991458]
[1730239815569,5.5782,179.27,179.19,10.77991458]
[1730239816550,5.5782,179.27,179.17,30.31431458]
[1730239818069,5.5782,179.27,179.18,10.77991458]
[1730239819164,5.5782,179.27,179.19,19.5322]
[1730239821036,5.5782,179.27,179.17,10.77991458]
[1730239822157,5.5782,179.27,179.19,5.5806]
[1730239822548,5.5782,179.27,179.19,19.5322]
[1730239823057,5.5782,179.27,179.19,30.31211458]
[1730239823947,5.5782,179.27,179.2,10.77991458]
[1730239824572,5.5782,179.27,179.21,10.77991458]
[1730239825045,5.5782,179.27,179.22,10.77991458]
[1730239825245,5.5782,179.27,179.22,5.5795]
[1730239826170,5.5782,179.27,179.15,27.9095]
[1730239826370,5.5782,179.27,179.19,10.77991458]
[1730239826863,5.5782,179.27,179.2,10.77991458]
[1730239827373,5.5782,179.27,179.21,19.5301]
[1730239827776,5.5782,179.27,179.21,30.31001458]
[1730239829573,5.5782,179.27,179.2,10.77991458]
[1730239829785,5.5782,179.27,179.19,10.77991458]
[1730239832081,5.5782,179.27,179.2,19.5311]
[1730239834979,5.5782,179.27,179.18,10.77991458]
[1730239836079,5.5782,179.27,179.19,19.5322]
[1730239836984,20.6021181,179.28,179.21,10.77991458]
[1730239837277,26.1800181,179.28,179.2,34.68228858]
[1730239838275,0.6021181,179.28,179.24,10.77991458]
[1730239838693,0.6021181,179.28,179.23,10.77991458]
[1730239839176,0.6021181,179.28,179.25,10.77991458]
[1730239839375,0.6021181,179.28,179.21,63.7571]
[1730239839376,0.6021181,179.28,179.24,10.77991458]
[1730239839684,0.6021181,179.28,179.22,23.902374]
[1730239839976,0.6021181,179.28,179.23,10.77991458]
[1730239840183,0.6021181,179.28,179.24,19.5268]
[1730239844281,0.6021181,179.28,179.24,24.72761458]
[1730239845592,0.6021181,179.28,179.24,30.30671458]
[1730239847773,0.6021181,179.28,179.25,10.77991458]
[1730239849700,0.6021181,179.28,179.26,10.77991458]
[1730239849878,0.6021181,179.28,179.27,10.77991458]
[1730239850896,0.6021181,179.28,179.27,34.68228858]
[1730239852170,0.6021181,179.28,179.27,40.26038858]
[1730239852390,0.6021181,179.28,179.27,99.1751469]
[1730239854303,0.6021181,179.28,179.27,56.05548858]
[1730239858477,0.6021181,179.28,179.27,5.5781]
[1730239858796,0.6021181,179.28,179.27,16.35801458]
[1730239859811,0.6021181,179.28,179.27,40.26038858]
[1730239860798,0.6021181,179.28,179.26,16.35831458]
[1730239861007,0.6021181,179.28,179.25,13.947]
[1730239861183,0.6021181,179.28,179.27,10.77991458]
[1730239862102,0.6021181,179.28,179.27,16.35801458]
[1730239862396,0.6021181,179.28,179.27,40.26038858]
[1730239865696,0.6021181,179.28,179.27,29.480474]
[1730239865903,0.6021181,179.28,179.27,40.26038858]
[1730239880724,0.6021181,179.28,179.27,91.07783142]
[1730239881014,15.6266,179.37,179.29,0.12549]
[1730239881218,15.6266,179.37,179.33,10.77991458]
[1730239883514,15.6266,179.37,179.33,16.35591458]
[1730239883902,15.6266,179.37,179.33,30.29661458]
[1730239885527,21.2017,179.37,179.29,14.06879]
[1730239885699,21.2017,179.37,179.29,24.72321458]
[1730239886235,21.2017,179.37,179.3,10.77991458]
[1730239886532,21.2017,179.37,179.3,16.35681458]
[1730239886731,21.2017,179.37,179.29,10.77991458]
[1730239887314,21.2017,179.37,179.24,19.5268]
[1730239887516,20.0,179.36,179.25,10.77991458]
[1730239888311,20.0,179.36,179.26,10.77991458]
[1730239889127,5.5756,179.35,179.26,16.35821458]
[1730239889528,5.5756,179.35,179.26,5.5783]
[1730239889738,6.3838,179.34,179.26,5.5783]
[1730239889922,5.5763,179.33,179.25,10.77991458]
[1730239890924,5.5763,179.33,179.26,5.5784]
[1730239893140,5.5763,179.33,179.26,19.5246]
[1730239894317,5.5763,179.33,179.25,10.77991458]
[1730239895329,5.5763,179.33,179.25,19.5258]
[1730239896117,5.5763,179.33,179.25,30.30571458]
[1730239900934,5.5763,179.33,179.24,10.77991458]
[1730239901860,5.5763,179.33,179.2,19.5311]
[1730239901861,20.0,179.31,179.2,19.5311]
[1730239902157,20.0,179.31,179.2,30.31101458]
[1730239902334,20.0,179.31,179.2,19.5311]
[1730239902535,6.3838,179.3,179.2,19.5311]
[1730239903043,5.5778,179.28,179.2,13.9508]
[1730239903240,36.4042,179.27,179.16,13.9534]
[1730239903443,6.3838,179.24,179.16,13.9534]
[1730239903833,20.0,179.23,179.16,13.9534]
[1730239904540,5.5797,179.22,179.16,13.9534]
[1730239904960,20.0,179.23,179.16,24.73331458]
[1730239904961,25.5794,179.23,179.16,24.73331458]
[1730239905141,11.9629,179.24,179.16,24.73331458]
[1730239905955,11.9629,179.24,179.16,13.9534]
[1730239906338,11.9629,179.24,179.16,19.535]
[1730239907563,11.9629,179.24,179.14,0.12549]
[1730239907733,11.9629,179.24,179.14,10.90540458]
[1730239908154,11.9629,179.24,179.14,0.12549]
[1730239908461,11.9629,179.24,179.17,10.77991458]
[1730239908646,11.9629,179.24,179.18,19.5333]
[1730239909856,11.9629,179.24,179.18,13.9524]
[1730239910646,6.3838,179.24,179.18,13.9524]